Cogmind - Beta 17 @@@ ROGUE MODE // 2026.07.07 @ 19:08:34 Player: shapeshifter Result: Destroyed by NY-GDQ(R) with Subdweller Machine Gun Performance ------------- Evolutions (0) 0 Regions Visited (2) 400 Robots Destroyed (17) 85 Value Destroyed (479) 479 Prototype IDs (1) 20 Alien Tech Used (0) 0 Bonus (5000) 5000 TOTAL SCORE: 5984 Bonus ------- Prayed to X0-1V1 5000 Cogmind --------- Core Integrity 0/150 Matter 105/500 Energy 125/125 System Corruption 0% Temperature Cool (0) Movement Treading (160) Location -10/Subcaves Parts ------- > --- POWER (1) -------- Light Ion Engine > --- PROPULSION (2) --- Light Treads Light Treads > --- UTILITY (2) ------ Small Storage Unit X0-1V1's Piety Tracker > --- WEAPON (2) ------- EM Pulse Gun Subdweller Shrapnel Launcher > --- INVENTORY (8) ---- High-capacity Matter Pod (197) High-capacity Matter Pod (0) High-capacity Matter Pod (0) High-capacity Matter Pod (17) Datajack Peak State ------------ > --- POWER ------------ Light Ion Engine > --- PROPULSION ------- Light Treads Light Treads > --- UTILITY ---------- Small Storage Unit X0-1V1's Piety Tracker > --- WEAPON ----------- EM Pulse Gun Subdweller Shrapnel Launcher > --- INVENTORY -------- High-capacity Matter Pod High-capacity Matter Pod High-capacity Matter Pod High-capacity Matter Pod Datajack [Rating: 20] Favorites ----------- Power Light Ion Engine Engine Light Ion Engine Propulsion Light Treads Treads Light Treads Utility Small Storage Unit Device X0-1V1's Piety Tracker Storage Small Storage Unit Weapon Assault Rifle Energy Gun Medium Laser Ballistic Gun Assault Rifle Launcher Subdweller Shrapnel Launcher Build | -11 -10 -10 ------- Run | Yrd Mat Sub Slots Evolved . | . . . Power . | . . . Propulsion . | . . . Utility . | . . . Weapon . | . . . Parts Attached 15 | 6 5 4 Power 2 | 1 1 . Engine 2 | 1 1 . Core . | . . . Reactor . | . . . Propulsion 6 | 2 2 2 Treads 6 | 2 2 2 Leg . | . . . Wheel . | . . . Hover . | . . . Flight . | . . . Utility 3 | 1 2 . Device 1 | . 1 . Storage 2 | 1 1 . Processor . | . . . Hackware . | . . . Protection . | . . . Artifact . | . . . Weapon 4 | 2 . 2 Energy Gun 2 | 1 . 1 Energy Cannon . | . . . Ballistic Gun 1 | 1 . . Ballistic Cannon . | . . . Launcher 1 | . . 1 Special Weapon . | . . . Impact Weapon . | . . . Slashing Weapon . | . . . Piercing Weapon . | . . . Special Melee Weapon . | . . . Unidentified Prototypes 1 | . 1 . Parts Lost 5 | . 1 4 Power 1 | . 1 . Propulsion 2 | . . 2 Utility . | . . . Weapon 2 | . . 2 Highest Loss Streak 4 | . 1 4 To Critical Strikes . | . . . Average Backups 4 | 1 4 6 Power . | . . . Propulsion . | . . 1 Utility 1 | . 1 4 Weapon . | . 1 . Tool/Special . | . . . Unused Backups 4 | . . 4 Power . | . . . Propulsion . | . . . Utility 3 | . . 3 Weapon . | . . . Tool/Special 1 | . . 1 Average Slot Usage (%) 91 | . 90 96 Engine 13 | . 13 14 Treads 27 | . 27 28 Device 2 | . . 14 Storage 19 | . 19 14 Energy Gun 14 | . 13 15 Ballistic Gun 12 | . 14 7 Peak Build Rating 20 | 6 19 20 Average Rating 7 | 5 6 19 On Entrance 8 | . 6 19 Avg Prop Armor Cover (%) . | . . . Naked Turns . | . . . Heaviest Build 19 | 12 16 19 Greatest Support 40 | 40 40 40 Greatest Overweight (x) 3 | . 3 3 Average Overweight (x) . | . . . Largest Inventory Capacity 8 | 8 8 8 Average Capacity 7 | 7 8 8 Most Carried 8 | 5 8 8 Average Carried 4 | 2 4 6 Final Capacity 8 | 8 8 8 Final Carried 8 | 2 8 5 Class Distribution -------------------- 100% | Mutant Dominant Class ---------------- Mutant | -10/Materials Mutant | -10/Subcaves Resources | -11 -10 -10 ----------- Run | Yrd Mat Sub Matter Collected 736 | 262 266 208 Remotely . | . . . Salvage Created 529 | 32 409 88 Parts 30 | 5 22 3 Haulers Intercepted . | . . . Recyclers Shooed 2 | . 2 . Parts Field Recycled . | . . . Retrieved Matter . | . . . Parts Self-Destructed . | . . . Prevented . | . . . Parts Restored . | . . . Kills | -11 -10 -10 ------- Run | Yrd Mat Sub Combat Hostiles Destroyed 11 | . 8 3 Guns 9 | . 8 1 AOE 2 | . . 2 Classes Destroyed 5 | 1 3 1 Worker 2 | . 2 . Tunneler 2 | 2 . . Watcher 2 | . 2 . Grunt 8 | . 8 . Subdweller 3 | . . 3 Best Kill Streak 4 | 1 4 2 Combat Bots Only 2 | . 2 2 Max Kills in Single Turn 1 | 1 1 1 Gunslinging . | . . . Exploded 1 | . . 1 Melee . | . . . Uniques/NPCs Destroyed . | . . . Combat | -11 -10 -10 -------- Run | Yrd Mat Sub Hostile Shots Fired 78 | . 52 26 Missed 23 | . 13 10 Hits 55 | . 39 16 Projectile 55 | . 39 16 AOE 10 | . . 10 Damage Taken 1177 | . 509 668 Core 271 | . 61 210 Absorbed by Shields . | . . . Ignored by Resistances 16 | . . 16 Core Remaining (%) 100 | 100 . . Volleys Fired 76 | 15 47 14 Largest 2 | 2 2 2 Hottest 90 | 70 70 90 Shots Fired 150 | 30 93 27 Gun 142 | 30 93 19 Cannon . | . . . Launcher 8 | . . 8 Special . | . . . Kinetic 72 | 15 47 10 Thermal 66 | 15 46 5 Explosive . | . . . Electromagnetic 12 | . . 12 Robot Hit Streak 15 | 4 15 10 Robot Miss Streak 4 | 4 2 2 Penetration Max . | . . . Secondary Targets 1 | . 1 . Max Gunslinging Chain 1 | . 1 . Shots Hit Robots 108 | 17 69 22 Core Hits 34 | 3 26 5 Critical Kills . | . . . Critical Parts Destroyed . | . . . Critical Strikes 5 | . 5 . Burn 5 | . 5 . Melee Attacks . | . . . Impact . | . . . Slashing . | . . . Piercing . | . . . Sneak Attacks . | . . . Combat Hostiles . | . . . Follow-up Attacks . | . . . Damage Inflicted 1758 | 246 923 589 Guns 1309 | 246 920 143 Cannons . | . . . Explosions 446 | . . 446 Melee . | . . . Ramming 3 | . 3 . Kinetic 1065 | 132 487 446 Thermal 584 | 114 433 37 Explosive . | . . . Electromagnetic 106 | . . 106 Impact . | . . . Slashing . | . . . Piercing . | . . . Highest Corruption . | . . . Average Corruption . | . . . Corruption Purged . | . . . Corruption Blocked . | . . . Overload Shots . | . . . Overflow Damage . | . . . Projectiles . | . . . Explosions . | . . . Melee . | . . . Knockbacks . | . . . Impact . | . . . Kinetic . | . . . Secondary . | . . . Self-Inflicted Damage 3 | . . 3 Shots 1 | . . 1 Rammed 1 | . 1 . Targets Rammed 1 | . 1 . Kicked . | . . . Crushed . | . . . Highest Temperature 104 | 45 104 . Average Temperature 32 | 16 37 . Received Heat Transfer 315 | . 273 42 Siege Activations . | . . . Martial Activations . | . . . Shielding Activations . | . . . Robots Disrupted . | . . . Combat Hostiles . | . . . Robots Corrupted . | . . . Combat Hostiles . | . . . Parts Fried . | . . . Impact Corruptions . | . . . Robots Melted . | . . . Combat Hostiles . | . . . Parts Melted 1 | . 1 . Heat Transferred 2072 | 333 1628 111 Parts Sabotaged . | . . . Parts Stolen . | . . . Parts Stripped . | . . . Power Chain Reactions . | . . . Alert | -11 -10 -10 ------- Run | Yrd Mat Sub Maximum Alert Level . | . . . Low Security (%) 100 | 100 100 . Level 1 . | . . . Level 2 . | . . . Level 3 . | . . . Level 4 . | . . . Level 5 . | . . . High Security . | . . . Max Security . | . . . Peak Influence 60 | 5 60 . Initial . | . . . Average 13 | . 16 . Influence Increases 264 | 10 254 . Destroy 0b10 Robot/C 160 | . 160 . Destroy 0b10 Robot/NC 30 | 10 20 . Destroy Leader 54 | . 54 . Successful Hack 19 | . 19 . Destroy Structure 1 | . 1 . Influence Decreases 264 | 10 254 . Time Decay 259 | 10 249 . Lost Part 5 | . 5 . Squads Dispatched 2 | . 2 . Investigation . | . . . Extermination . | . . . Reinforcement 2 | . 2 . Assault . | . . . Garrison . | . . . Intercept . | . . . Searches Triggered . | . . . Construction Impeded . | . . . Haulers Reinforced . | . . . Active Scanning Responses . | . . . Cargo Convoy Interrupts . | . . . Stealth | -11 -10 -10 --------- Run | Yrd Mat Sub Distress Signals 2 | . 2 . Communications Jammed . | . . . Distress Signals . | . . . Times Spotted 23 | . 16 7 Peak Tracking Total 5 | . 5 2 Tactical Retreats . | . . . Traps | -11 -10 -10 ------- Run | Yrd Mat Sub Traps Triggered 2 | . 2 . Indirectly . | . . . Trap Hack Attempts . | . . . Triggered . | . . . Disarmed . | . . . Reprogrammed . | . . . Reused . | . . . Traps Extracted . | . . . Installed . | . . . Triggered . | . . . Machines | -11 -10 -10 ---------- Run | Yrd Mat Sub Machines Disabled . | . . . Max in Single Turn . | . . . Machines Repaired . | . . . Machines Dismantled . | . . . Machines Sabotaged . | . . . Overloaded Fab Kills . | . . . Hacking | -11 -10 -10 --------- Run | Yrd Mat Sub Machines Accessed 5 | . 5 . Terminals 5 | . 5 . Fabricators . | . . . Repair Stations . | . . . Recycling Units . | . . . Scanalyzers . | . . . Garrison Access . | . . . Total Hacks 19 | . 19 . Successful 12 | . 12 . Failed 7 | . 7 . Catastrophic . | . . . Database Lockouts . | . . . Manual 18 | . 18 . Terminals 19 | . 19 . Fabricators . | . . . Repair Stations . | . . . Recycling Units . | . . . Scanalyzers . | . . . Garrison Access . | . . . Terminal Hacks 2 | . 2 . Robot Analysis 1 | . 1 . Zone Layout 1 | . 1 . Fabricator Hacks . | . . . Repair Station Hacks . | . . . Recycling Unit Hacks . | . . . Scanalyzer . | . . . Garrison Access Hacks . | . . . Unauthorized Hacks 10 | . 10 . Terminals 10 | . 10 . Assimilate 1 | . 1 . Botnet 3 | . 3 . Operators 1 | . 1 . Skim 5 | . 5 . Fabricators . | . . . Repair Stations . | . . . Recycling Units . | . . . Scanalyzers . | . . . Garrison Access . | . . . Data Cores Recovered . | . . . Used . | . . . Hacking Detections 3 | . 3 . Full Trace Events . | . . . Feedback Events . | . . . Feedback Blocked . | . . . Robot Schematics Acquired . | . . . Robots Built . | . . . Authchips . | . . . Time . | . . . Total Robot Build Rating . | . . . Part Schematics Acquired . | . . . Parts Built . | . . . Authchips . | . . . Time . | . . . Total Part Build Rating . | . . . Part Studies Acquired . | . . . Parts Repaired . | . . . Time . | . . . Parts Recycled . | . . . Recycled Matter . | . . . Retrieved Matter . | . . . Retrieved Components . | . . . Parts Scanalyzed . | . . . Part Schematics Acquired . | . . . Parts Damaged . | . . . Bothacking | -11 -10 -10 ------------ Run | Yrd Mat Sub Used RIF Installer . | . . . Robots Hacked . | . . . Non-combat . | . . . Combat . | . . . Robot Hacks Applied . | . . . Relay Couplers Released . | . . . Fabnet Peak Effective % . | . . . Robots Rewired . | . . . Allies Hacked . | . . . Hacks Repelled . | . . . Allies | -11 -10 -10 -------- Run | Yrd Mat Sub Total Allies 1 | . 1 . Largest Group 1 | . 1 1 Highest-Rated Group 10 | . 10 10 Highest-Rated Ally 10 | . 10 10 Total Orders . | . . . Ally Attacks . | . . . Total Damage . | . . . Kills . | . . . Allies Corrupted . | . . . Allies Melted . | . . . X0-1V1 Amusement Gains 23 | . 23 . Good Acts 3 | . . 3 Bad Acts 1 | . . 1 Intel | -11 -10 -10 ------- Run | Yrd Mat Sub Active Infowar (turns) . | . . . Robot Analysis Total 1 | . 1 . Derelict Logs Recovered . | . . . Drone Launches . | . . . Drone Recoveries . | . . . Exploration | -11 -10 -10 ------------- Run | Yrd Mat Sub Turns Passed 1102 | 172 802 128 Spaces Moved 429 | 84 296 49 Core 22 | 18 3 1 Treads 407 | 66 293 48 Legs . | . . . Wheels . | . . . Hover . | . . . Flight . | . . . Fastest Speed 50 | 50 160 160 Average Speed 155 | 136 160 160 Slowest Speed 200 | 160 200 200 Overloaded Moves . | . . . Propulsion Burnouts . | . . . Robots Hopped . | . . . Potential Cave-ins . | . . . Cave-ins Triggered . | . . . Exploration Rate (%) 26 | 4 68 6 Regions Visited 2 Branch Regions 1 Pre-discovered Areas 1 | . 1 . Known Exits Taken 1 | . 1 . Unknown Exits Taken 1 | 1 . . Scrap Searched . | . . . Spaces Dug . | . . . Terrain Destroyed 72 | . . 72 Melee . | . . . Projectile . | . . . AOE 72 | . . 72 Terrain Rammed . | . . . Walls Destroyed . | . . . Machines Disabled . | . . . Actions | -11 -10 -10 --------- Run | Yrd Mat Sub Total 713 | 112 529 72 Wait 166 | . 164 2 Move 427 | 83 295 49 Hop . | . . . Pick Up 22 | 8 12 2 Fast Attach 1 | . 1 . Attach 15 | 6 4 5 Detach . | . . . Swap 3 | . 3 . Drop 2 | . 2 . Fire 76 | 15 47 14 Melee . | . . . Ram . | . . . Kick . | . . . Crush 1 | . 1 . Escape Stasis . | . . . Rewire . | . . . Trap . | . . . Miscellaneous . | . . . Route ------- -11/Scrapyard -10/Materials (discovered 6 exits: *Mat x3 / [*Min x2] / *Sub) -10/Subcaves (discovered 3 exits: Mat x2 / Rec) History --------- Turn | Location | Event 9 | -11/Scrapyard | Discovered new exit (range 14) 173 | -11/Scrapyard | Entered Materials 307 | -10/Materials | Build established: Mutant 438 | -10/Materials | Discovered new exit (range 16) 670 | -10/Materials | Discovered new exit (range 15) 764 | -10/Materials | Discovered new exit (range 14) 828 | -10/Materials | Identified exit to Subcaves 828 | -10/Materials | Identified exit to Materials 880 | -10/Materials | Learned location of 2 exits from Subcaves 892 | -10/Materials | Learned 2 Mines zone layouts 894 | -10/Materials | Learned Storage stockpile data 895 | -10/Materials | Learned location of Storage (-9) 908 | -10/Materials | Learned location of 1 exit from Storage 966 | -10/Materials | Prayed at D.C.S.S. Altar Unit 975 | -10/Materials | Entered Subcaves 975 | -10/Subcaves | Accompanied by 1 ally 976 | -10/Subcaves | Identified exit to Materials 976 | -10/Subcaves | Identified exit to Recycling 1031 | -10/Subcaves | Ambushed by Subdwellers from Twisted Machinery 1042 | -10/Subcaves | Core integrity fell below 50% 1069 | -10/Subcaves | Core integrity fell below 20% 1087 | -10/Subcaves | Lost 4 parts (2n2w) 1095 | -10/Subcaves | Matter capacity permanently improved by X0-1V1 (+200; -100 max core) 1098 | -10/Subcaves | Ambushed by Subdweller buried in earth 1101 | -10/Subcaves | Ambushed by Subdweller buried in earth 1103 | -10/Subcaves | Destroyed by NY-GDQ(R) with Subdweller Machine Gun Last Messages --------------- Launcher. 01053_ C8-DSX(R) affixes Scrap Shield Fragment to Scrap Shield. 01056_ Med. Laser destroyed. 01056_ C8-DSX(R) destroyed. 01062_ Subatomizers dissect the Sub. Shrapnel Launcher. 01065_ Acquired Sub. Shrapnel Launcher. 01078_ X0-1V1: "And it's a trip and a fumble!" 01078_ Sub. Shrapnel Launcher tossed aside. 01079_ Acquired Sub. Shrapnel Launcher. 01081_ Destroyed Scrap Shield. 01081_ YY-IH1(R) destroyed. 01095_ X0-1V1: "Any self-respecting god will have their pound of flesh." (permanent -100 core integrity, +200 matter capacity) 01098_ QN-XUK(R) destroyed. 01099_ NY-GDQ(R): "SLEEPOVER!" 01102_ HX-7Z7(R): "ARGHSUB!" 01103_ X0-1V1 guffaws! Map ----- +----------------------------------------------------+ | ??????????????????????????????????>??????????????? | | ?????????????????????????????????????????????????? | | ?????????????????????????????????????????????????? | | ?????????????????????????????????????????????????? | | ?????????????????????????????????????????????????? | | ?????????????????????????????????????????????????? | | ?????????????????????????????????????????????????? | | ?????????????????????????????????????????????????? | | ?????????????????????????????????????????????????? | | ?????????????????????????????????????????????????? | | ?????????????????????????????????????????????????? | | ?????????????????????????????????????????????????? | | ?????????????????????????????????????????????????? | | ?????????????????????????????????????????????????? | | ?????????????????????????######??????????????????? | | ????????????????????????##" ###????????????????? | | ????????????????????##### ###??##??????????? | | ????????????????##### ## ###????????? | | ???????????????## #????????? | | ???????????????# #????????? | | ???????????????# ###???????? | | ???????????????# ??????? | | ???????????????# "???????? | | ??????# # " ???????? | | ??????????# #????????? | | ??????????# @ ;#????????? | | ??????????## R ; ; ##???????? | | ???????????## ; ###" #???????? | | ????????????# R #" #???????? | | ????????????#### ;# ; ##"" " ???????? | | ???????????????## ## ## ## ;"" "?????????? | | ????????????????## ?##?###? ; " #??????????? | | ?????????????????# ???????? %= #??????????? | | ?????????????????#?????????#; " #??????????? | | ??????????????????????????## ####??????????? | | ??????????????????????????# #?????????????? | | ??????????????????????????# #?????????????? | | ??????????????????????????## ##?????????????? | | ???????????????????????????# " #??????????????? | | ???????????????????????????## " #??????????????? | | ???????????????????????????## " #??????????????? | | ???????????????????????????# ##??????????????? | | ??????????????????????????## # #??????????????? | | ??????????????????????????# # #??????????????? | | ??????????????????????????## #??????????????? | | ???????????????????????????# ##?????????????? | | ???????????????????????????# #?????????????? | | ??????????????????????????# ## # #?????????????? | | ??????????????????????????##?### ##????????????? | | ??????????????????????????????# #????????????? | +----------------------------------------------------+ Best States ------------- Heat Dissipation 25 Energy Generation 10 Energy Capacity 125 Matter Stores 320 Matter Capacity 500 Sight Range 16 Terrain Scan Density 10 Resistance: TH 24 Evasion (%) 50 Recoil Reduction 2 Item Schematics ----------------- None Robot Schematics ------------------ None Fabricated ------------ Nothing Repaired ---------- Nothing Studied --------- None Alien Tech Used ----------------- None Achievements -------------- None Challenges ------------ None Game ------ Seed RingShiftMegashotty Manual? 0 Play Time 00:06:05 Cumulative 975.0 hours Start 2026.07.07 @ 19:03:06 End 2026.07.07 @ 19:08:34 Sessions 1 Manual Loads 0 Difficulty Rogue Special Mode None Game No. 1115 Rogue 1115 Adventurer 0 Explorer 0 Win Type - Total 44 Types 21/1/9/3/2/1/3/2/1/1 Lore% 98 Gallery% 96 Achievement% 93 Wizard Run 0 Options --------- Layout 2 ASCII 0 Keyboard 0 Movement Mouse Keybinds 0 Fullscreen 2 Font 24/X11 Map View 50x44 Zoom Use 0% Tactical HUD 1 Map Filters NONE Filters NONE Steam 1 RUN: 60a8c36f-1ca1-402c-9726-45d11ac432d9